bitfinex/quotes_BTCUSD_20230115
["timestamp","ask_amount","ask_price","bid_price","bid_amount"]
[1673780294029,1.75738153,20740.0,20739.0,22.0]
[1673780294775,1.75738153,20740.0,20738.0,0.36445062]
[1673780295037,1.75738153,20740.0,20739.0,21.0]
[1673780295782,1.75738153,20740.0,20738.0,0.36445062]
[1673780296047,2.23458322,20740.0,20739.0,1.0]
[1673780296293,2.36418914,20740.0,20739.0,1.002]
[1673780296539,2.25058322,20740.0,20739.0,0.002]
[1673780296781,2.25058322,20740.0,20739.0,2.0]
[1673780296782,2.82078322,20740.0,20739.0,2.0]
[1673780297035,2.82778322,20740.0,20738.0,0.009]
[1673780297287,2.82778322,20740.0,20737.0,0.37622555]
[1673780297288,0.77720169,20739.0,20737.0,0.37622555]
[1673780297499,1.74156769,20739.0,20738.0,2.0]
[1673780297985,1.74156769,20739.0,20738.0,32.38658095]
[1673780298718,1.74156769,20739.0,20738.0,32.0]
[1673780298978,1.74156769,20739.0,20738.0,32.00013445]
[1673780299238,1.74156769,20739.0,20738.0,0.00013445]
[1673780299481,1.74156769,20739.0,20737.0,0.41097131]
[1673780299733,1.75056769,20739.0,20738.0,25.0]
[1673780299997,1.74156769,20739.0,20738.0,27.00013445]
[1673780300213,1.74856769,20739.0,20738.0,27.00913445]
[1673780300487,1.74856769,20739.0,20738.0,1.00913445]
[1673780300731,1.74856769,20739.0,20738.0,26.009]
[1673780300995,1.74856769,20739.0,20738.0,26.00913445]
[1673780301243,1.74856769,20739.0,20738.0,26.009]
[1673780301992,1.74911518,20739.0,20738.0,26.009]
[1673780302488,1.74856769,20739.0,20738.0,26.009]
[1673780303394,1.74911518,20739.0,20738.0,26.009]
[1673780303855,1.74856769,20739.0,20738.0,26.009]
[1673780304485,1.74911518,20739.0,20738.0,26.009]
[1673780304698,1.74856769,20739.0,20738.0,26.009]
[1673780307092,1.74911518,20739.0,20738.0,26.009]
[1673780307331,1.74856769,20739.0,20738.0,26.009]
[1673780309020,0.789183,20739.0,20738.0,26.009]
[1673780309272,0.307,20739.0,20738.0,26.42687342]
[1673780309519,0.307,20739.0,20738.0,0.42687342]
[1673780309769,0.307,20739.0,20738.0,24.42687342]
[1673780310010,0.007,20739.0,20738.0,0.42687342]
[1673780310251,0.007,20739.0,20738.0,23.42678281]
[1673780310741,0.007,20739.0,20738.0,23.36446663]
[1673780310995,0.007,20739.0,20738.0,23.59582301]
[1673780311224,0.007,20739.0,20738.0,24.56023501]
[1673780312432,0.1443443,20743.0,20738.0,24.56164852]
[1673780312672,0.1443443,20743.0,20739.0,0.69365957]
[1673780312902,0.1443443,20742.0,20739.0,22.05345526]
[1673780313211,0.1443443,20743.0,20739.0,21.064339]
[1673780313495,0.1443443,20743.0,20740.0,2.0]
[1673780313748,0.66086075,20743.0,20740.0,2.0]
[1673780313987,0.012,20742.0,20740.0,2.0]
[1673780314246,0.1443443,20742.0,20740.0,2.0]
[1673780314529,0.4563443,20743.0,20740.0,2.0]
[1673780314768,0.66086075,20743.0,20741.0,0.38186865]
[1673780315022,0.73640824,20743.0,20741.0,0.38186865]
[1673780315266,0.51989179,20743.0,20741.0,0.38186865]
[1673780315511,0.075,20742.0,20741.0,0.38186865]
[1673780316671,0.77128324,20744.0,20741.0,0.38186865]
[1673780316925,0.2203443,20743.0,20741.0,0.38186865]
[1673780317180,0.1443443,20743.0,20741.0,0.38186865]
[1673780317683,0.076,20742.0,20741.0,0.38186865]
[1673780317939,0.1443443,20743.0,20741.0,0.38186865]
[1673780318195,0.076,20743.0,20741.0,0.38386865]
[1673780318703,0.07654749,20743.0,20741.0,0.38386865]
[1673780318921,0.076,20743.0,20741.0,0.38386865]
[1673780319184,0.2203443,20743.0,20741.0,0.38386865]
[1673780319431,0.076,20743.0,20741.0,0.38386865]
[1673780320216,0.376,20743.0,20741.0,0.38386865]
[1673780320473,0.96388484,20743.0,20741.0,0.38386865]
[1673780320723,1.18040129,20743.0,20741.0,0.38386865]
[1673780320974,0.96388484,20743.0,20741.0,0.38386865]
[1673780321211,1.44597584,20743.0,20741.0,0.002]
[1673780321465,0.61114778,20742.0,20741.0,0.002]
[1673780321728,1.12766423,20742.0,20741.0,0.002]
[1673780321983,1.39326078,20742.0,20741.0,0.002]
[1673780322265,0.9264573,20742.0,20741.0,0.11734]
[1673780322508,0.9264573,20742.0,20741.0,0.54669493]
[1673780323009,0.9264573,20742.0,20741.0,0.54469493]
[1673780323283,1.0024573,20742.0,20741.0,0.54669493]
[1673780323526,0.858113,20742.0,20741.0,0.54669493]
[1673780324007,1.3235973,20742.0,20741.0,0.54669493]
[1673780324261,0.858113,20742.0,20741.0,0.54669493]
[1673780324507,0.558113,20742.0,20741.0,0.54669493]
[1673780324752,0.858113,20742.0,20741.0,0.54669493]
[1673780325248,1.179253,20742.0,20741.0,0.54669493]
[1673780325502,0.85866049,20742.0,20741.0,0.54676558]
[1673780325758,0.858113,20742.0,20741.0,0.54676558]
[1673780326025,0.858113,20742.0,20741.0,0.54669493]
[1673780326263,0.858113,20742.0,20741.0,0.43135493]
[1673780326523,1.0024573,20742.0,20741.0,0.43135493]
[1673780326774,1.00300479,20742.0,20741.0,0.43135493]
[1673780327074,1.3235973,20742.0,20741.0,0.43135493]
[1673780327542,1.0024573,20742.0,20741.0,0.43135493]
[1673780327792,1.0024573,20742.0,20741.0,0.43142558]
[1673780327793,0.858113,20742.0,20741.0,0.43142558]
[1673780329319,0.858113,20742.0,20741.0,0.43135493]
[1673780329608,0.858113,20742.0,20741.0,0.43263399]
[1673780331168,0.85866049,20742.0,20741.0,0.43135493]
[1673780331415,1.00300479,20742.0,20741.0,0.43135493]
[1673780332432,1.0024573,20742.0,20741.0,0.43135493]
[1673780332675,1.00300479,20742.0,20741.0,0.43135493]
[1673780332935,0.858113,20742.0,20741.0,0.43135493]
[1673780333497,0.858113,20742.0,20741.0,0.431486]
[1673780334504,0.85866049,20742.0,20741.0,0.43135493]
[1673780335300,0.858113,20742.0,20741.0,0.43135493]
[1673780335598,0.858113,20742.0,20741.0,0.431486]
[1673780336119,0.858113,20742.0,20741.0,0.43135493]
[1673780336648,0.858113,20742.0,20741.0,0.43264371]
[1673780336920,0.558113,20742.0,20741.0,0.43264371]
[1673780337189,0.076,20742.0,20741.0,0.43264371]
[1673780337762,0.376,20742.0,20741.0,0.43264371]
[1673780338013,0.076,20742.0,20741.0,0.43264371]
[1673780338273,0.376,20742.0,20741.0,0.43264371]
[1673780338526,0.076,20742.0,20741.0,0.43264371]
[1673780339871,0.376,20742.0,20741.0,0.43264371]
[1673780340371,0.076,20742.0,20741.0,0.43264371]
[1673780342363,0.076,20742.0,20741.0,0.43135493]
[1673780343085,0.376,20742.0,20741.0,0.43135493]
[1673780343325,0.076,20742.0,20741.0,0.43135493]
[1673780343570,0.376,20742.0,20741.0,0.43135493]
[1673780343819,0.37654749,20742.0,20741.0,0.43135493]
[1673780344065,0.376,20742.0,20741.0,0.43135493]
[1673780344317,0.5203443,20742.0,20741.0,0.43135493]
[1673780344582,0.376,20742.0,20741.0,0.43135493]
[1673780344827,0.37654749,20742.0,20741.0,0.43135493]
[1673780345093,0.376,20742.0,20741.0,0.43135493]
[1673780345850,0.37654749,20742.0,20741.0,0.43135493]
[1673780346089,0.376,20742.0,20741.0,0.43135493]
[1673780346567,0.076,20742.0,20741.0,0.43135493]
[1673780348375,0.52089179,20742.0,20741.0,0.43135493]
[1673780348641,0.5203443,20742.0,20741.0,0.43135493]
[1673780349172,0.73686075,20742.0,20741.0,0.43135493]
[1673780349415,0.73740824,20742.0,20741.0,0.43135493]
[1673780350437,0.88175255,20742.0,20741.0,0.43135493]
[1673780350943,0.59306394,20742.0,20741.0,0.43135493]
[1673780352469,0.59251645,20742.0,20741.0,0.43135493]
[1673780353030,0.88120506,20742.0,20741.0,0.43135493]
[1673780354130,0.88120506,20742.0,20741.0,0.43154388]
[1673780354661,0.59285882,20742.0,20741.0,0.43135493]
[1673780355443,0.88154743,20742.0,20741.0,0.43135493]
[1673780356205,0.88209492,20742.0,20741.0,0.43135493]
[1673780357253,0.59340631,20742.0,20741.0,0.43135493]
[1673780358069,0.66468861,20742.0,20741.0,0.43135493]
[1673780358246,0.88155163,20742.0,20741.0,0.43154388]
[1673780358760,0.88155163,20742.0,20741.0,0.43135493]
[1673780359023,0.6652361,20742.0,20741.0,0.002]
[1673780359313,1.10644376,20742.0,20741.0,0.002]
[1673780359521,0.88209193,20742.0,20741.0,0.002]
[1673780359762,1.10643126,20742.0,20741.0,0.002]
[1673780360023,0.74502301,20742.0,20741.0,0.002]
[1673780360271,1.10559534,20742.0,20741.0,0.002]
[1673780361537,1.10559534,20742.0,20741.0,0.11752895]
[1673780361801,0.2928715,20742.0,20741.0,0.53628323]
[1673780362059,0.43745104,20742.0,20741.0,0.53628323]
[1673780362307,0.22057954,20742.0,20741.0,0.53628323]
[1673780362821,0.076,20742.0,20741.0,0.72011434]
[1673780363099,0.076,20742.0,20741.0,0.53616434]
[1673780363353,0.43745104,20742.0,20741.0,0.53616434]
[1673780363870,0.22057954,20742.0,20741.0,0.53616434]
[1673780364926,0.22057954,20742.0,20741.0,0.72011434]
[1673780365446,0.43745104,20742.0,20741.0,0.53616434]
[1673780365964,0.22057954,20742.0,20741.0,0.72011434]
[1673780366214,0.43745104,20742.0,20741.0,0.53616434]
[1673780366997,0.22057954,20742.0,20741.0,0.53616434]
[1673780367250,0.22057954,20742.0,20741.0,0.72011434]
[1673780367507,0.22057954,20742.0,20741.0,0.53616434]
[1673780369412,0.22057954,20742.0,20741.0,0.72011434]
[1673780369681,0.43745104,20742.0,20741.0,0.53616434]
[1673780370196,0.22057954,20742.0,20741.0,0.53616434]
[1673780370458,0.22057954,20742.0,20741.0,0.72011434]
[1673780372031,0.076,20742.0,20741.0,0.72011434]
[1673780373059,0.076,20742.0,20741.0,0.49208601]
[1673780373312,1e-08,20742.0,20741.0,2.51173628]
[1673780373612,1e-08,20742.0,20741.0,4.49208125]
[1673780373839,1e-08,20742.0,20741.0,4.17624588]
[1673780374087,1e-08,20742.0,20741.0,4.24824602]
[1673780374583,1e-08,20742.0,20741.0,3.88824531]
[1673780375078,0.20887354,20745.0,20741.0,3.8863642]
[1673780375331,0.20887354,20745.0,20743.0,0.14437677]
[1673780375590,0.20887354,20745.0,20744.0,1.148052]
[1673780376375,0.20887354,20745.0,20744.0,1.54973408]
[1673780376614,0.20887354,20745.0,20744.0,1.64273408]
[1673780376864,0.20887354,20745.0,20744.0,1.241052]
[1673780377125,0.20887354,20745.0,20744.0,1.73582704]
[1673780379222,0.20887354,20745.0,20744.0,1.73601597]
[1673780379474,0.20887354,20745.0,20744.0,1.55209797]
[1673780380051,0.20887354,20745.0,20744.0,1.73601297]
[1673780380358,0.20887354,20745.0,20744.0,1.55209797]
[1673780381696,0.20887354,20745.0,20744.0,1.24123793]
[1673780381968,0.20887354,20745.0,20744.0,2.0972607]
[1673780382227,0.20887354,20745.0,20744.0,1.9972607]
[1673780382730,0.20887354,20745.0,20744.0,0.63125569]
[1673780383012,0.20887354,20745.0,20744.0,0.093]
[1673780383268,0.63684604,20745.0,20744.0,0.093]
[1673780383525,0.93684604,20745.0,20744.0,0.093]
[1673780383775,0.63684604,20745.0,20744.0,0.093]
[1673780385133,0.63684604,20745.0,20744.0,0.20834]
[1673780385410,0.63684604,20745.0,20744.0,0.093]
[1673780386184,0.63684604,20745.0,20744.0,0.0944131]
[1673780386455,1.11888904,20745.0,20744.0,0.0944131]
[1673780386726,2.22207204,20745.0,20744.0,0.093]
[1673780388004,1.90093204,20745.0,20744.0,0.093]
[1673780391268,2.04551158,20745.0,20744.0,0.093]
[1673780391806,1.90093204,20745.0,20744.0,0.093]
[1673780392024,1.90093204,20745.0,20742.0,0.36726937]
[1673780392583,1.90193204,20745.0,20744.0,0.033]
[1673780392851,1.90183391,20745.0,20744.0,0.033]
[1673780393116,1.8884114,20745.0,20742.0,0.36726937]
[1673780393937,0.46708692,20744.0,20742.0,0.36726937]
[1673780394155,0.94916892,20744.0,20742.0,0.36726937]
[1673780395371,0.94916892,20744.0,20742.0,0.45326937]
[1673780395625,0.94916892,20744.0,20742.0,0.36726937]
[1673780395885,0.94916892,20744.0,20742.0,0.45326937]
[1673780396120,0.94916892,20744.0,20742.0,0.36726937]
[1673780396371,0.94916892,20744.0,20742.0,0.45326937]
[1673780396632,0.94916892,20744.0,20742.0,0.36726937]
[1673780397107,0.94916892,20744.0,20742.0,0.45326937]
[1673780397367,0.94916892,20744.0,20742.0,0.36726937]
[1673780398155,0.94916892,20744.0,20742.0,0.45326937]
[1673780398156,0.3,20743.0,20742.0,0.45326937]
[1673780398393,1.57638295,20744.0,20742.0,0.36726937]
[1673780398666,1.98470341,20744.0,20742.0,0.36726937]
[1673780399130,1.98415592,20744.0,20742.0,0.45326937]
[1673780399391,1.98415592,20744.0,20742.0,0.36726937]
[1673780399656,1.98415592,20744.0,20742.0,0.45326937]
[1673780399907,1.98415592,20744.0,20742.0,0.36726937]
[1673780400464,1.98415592,20744.0,20742.0,0.36752937]
[1673780400973,1.98415592,20744.0,20742.0,0.45352937]
[1673780401212,1.98415592,20744.0,20742.0,0.36752937]
[1673780401472,0.79110665,20743.0,20742.0,0.08626]
[1673780401729,1.89986619,20743.0,20742.0,0.00026]
[1673780401982,1.89986619,20743.0,20742.0,0.08626]
[1673780402748,1.75528665,20743.0,20742.0,0.085724]
[1673780403019,1.89986619,20743.0,20742.0,0.085724]
[1673780403324,1.75528665,20743.0,20742.0,0.085724]
[1673780403808,1.75528665,20743.0,20741.0,1.0605361]
[1673780403809,1.89986619,20743.0,20741.0,1.0605361]
[1673780404091,0.32114,20742.0,20741.0,1.0605361]
[1673780404345,1.89986619,20743.0,20741.0,1.0605361]
[1673780404639,1.90086619,20743.0,20742.0,0.086]
[1673780404901,1.89986619,20743.0,20741.0,1.0605361]
[1673780405163,1.90086619,20743.0,20741.0,1.1465361]
[1673780405415,1.89986619,20743.0,20741.0,1.0605361]
[1673780405678,1.75628665,20743.0,20741.0,1.1465361]
[1673780405978,1.75528665,20743.0,20741.0,1.0605361]
[1673780406513,1.89986619,20743.0,20741.0,1.06060675]
[1673780406764,1.89986619,20743.0,20741.0,13.0605361]
[1673780407016,1.90086619,20743.0,20741.0,1.1465361]
[1673780407254,1.89986619,20743.0,20741.0,1.0605361]
[1673780407527,1.90141368,20743.0,20741.0,1.1465361]
[1673780407865,1.75683414,20743.0,20741.0,1.0605361]
[1673780408128,1.75783414,20743.0,20741.0,1.1465361]
[1673780408385,1.90041368,20743.0,20741.0,1.0605361]
[1673780408656,1.90141368,20743.0,20741.0,1.0605361]
[1673780408909,2.11828518,20743.0,20741.0,1.0605361]
[1673780409163,2.11928518,20743.0,20741.0,1.1465361]
[1673780409666,1.90241368,20743.0,20741.0,1.1465361]
[1673780409986,1.90041368,20743.0,20741.0,0.63074471]
[1673780410212,1.90141368,20743.0,20741.0,0.71674471]
[1673780410472,1.90141368,20743.0,20741.0,0.63074471]
[1673780410723,0.43849325,20742.0,20741.0,0.71674471]
[1673780410999,1.40271925,20742.0,20741.0,0.71674471]
[1673780411337,1.70271925,20742.0,20741.0,0.71674471]
[1673780411731,1.70271925,20742.0,20741.0,0.63074471]
[1673780411982,1.70371925,20742.0,20741.0,0.71674471]
[1673780412248,1.84829879,20742.0,20741.0,0.71674471]
[1673780412501,1.36618579,20742.0,20741.0,0.71674471]
[1673780412748,1.22160625,20742.0,20741.0,0.71674471]
[1673780415244,1.22185625,20742.0,20741.0,0.71674471]
[1673780415508,1.84854879,20742.0,20741.0,0.71674471]
[1673780415771,2.06542029,20742.0,20741.0,0.71674471]
[1673780416037,1.93938094,20742.0,20741.0,0.71674471]
[1673780416365,1.93938094,20742.0,20741.0,0.63074471]
[1673780416366,1.72150944,20742.0,20741.0,0.63074471]
[1673780416582,2.19971113,20742.0,20741.0,0.71074471]
[1673780416839,2.19971113,20742.0,20741.0,0.63074471]
[1673780416840,2.98133027,20742.0,20741.0,0.63074471]
[1673780417099,2.19801696,20742.0,20741.0,0.63074471]
[1673780417351,2.8512851,20742.0,20741.0,0.71074471]
[1673780417613,2.8502851,20742.0,20741.0,0.63074471]
[1673780417869,2.37408341,20742.0,20741.0,0.71081536]
[1673780418126,2.37308341,20742.0,20741.0,0.63074471]
[1673780418384,2.1458256,20742.0,20741.0,0.63274471]
[1673780419430,2.1328256,20742.0,20741.0,0.63074471]
[1673780419698,0.37343117,20742.0,20741.0,0.63681536]
[1673780419945,0.37343117,20742.0,20741.0,1.11762166]
[1673780419946,0.15734971,20742.0,20741.0,1.11762166]
[1673780420206,0.00025,20742.0,20741.0,1.11162166]
[1673780420494,0.01325,20742.0,20741.0,1.11362166]
[1673780421571,0.45734971,20742.0,20741.0,1.11362166]
[1673780421842,0.31325,20742.0,20741.0,1.11362166]
[1673780422093,0.31325,20742.0,20741.0,0.63274471]
[1673780422357,1.36561043,20742.0,20741.0,0.63274471]
[1673780422619,1.72567618,20742.0,20741.0,0.63274471]
[1673780423021,1.43759218,20742.0,20741.0,0.63274471]
[1673780423261,1.43813967,20742.0,20741.0,0.63274471]
[1673780423470,1.5816948,20742.0,20741.0,0.63274471]
[1673780423686,1.36561334,20742.0,20741.0,0.63274471]
[1673780424546,1.36616083,20742.0,20741.0,0.63274471]
[1673780424771,1.58224229,20742.0,20741.0,0.63274471]
[1673780424986,1.58224229,20742.0,20741.0,0.002]
[1673780425866,1.58224229,20742.0,20741.0,0.00193351]
[1673780426077,1.43813967,20742.0,20741.0,0.00193351]
[1673780426338,2.45019204,20742.0,20741.0,0.00193351]
[1673780426884,2.16210804,20742.0,20741.0,0.00193351]
[1673780427170,2.45036408,20742.0,20741.0,0.00193351]
[1673780427671,2.09019749,20742.0,20741.0,0.00193351]
[1673780428185,2.2086306,20742.0,20741.0,9.00193351]
[1673780428438,2.2086306,20742.0,20741.0,0.00193351]
[1673780428695,1.99242725,20742.0,20741.0,0.00193351]
[1673780428950,2.0899795,20742.0,20741.0,0.00193351]
[1673780429488,2.45014609,20742.0,20741.0,0.00193351]
[1673780429747,2.45014609,20742.0,20741.0,15.00193351]
[1673780429965,2.45014609,20742.0,20741.0,0.00193351]
[1673780430218,2.45014609,20742.0,20741.0,12.00193351]
[1673780430466,2.0899795,20742.0,20741.0,0.00193351]
[1673780430720,2.20841292,20742.0,20741.0,10.00193351]
[1673780431001,1.99217725,20742.0,20741.0,0.00193351]
[1673780431248,2.20841555,20742.0,20741.0,0.11727351]
[1673780431510,1.0113513,20742.0,20741.0,0.11727351]
[1673780431786,0.15717494,20742.0,20741.0,0.60143296]
[1673780432016,0.013,20742.0,20741.0,0.60143296]
[1673780432266,0.15717494,20742.0,20741.0,0.60143296]
[1673780432511,0.15717494,20742.0,20741.0,0.60150361]
[1673780432765,0.013,20742.0,20741.0,15.60143296]
[1673780433025,0.013,20742.0,20741.0,10.60143296]
[1673780433525,0.313,20742.0,20741.0,10.60150361]
[1673780434041,0.013,20742.0,20741.0,0.78545361]
[1673780434348,0.15717494,20742.0,20741.0,7.78545361]
[1673780434549,0.013,20742.0,20741.0,0.78545361]
[1673780434818,0.013,20742.0,20741.0,11.78545361]
[1673780435059,0.013,20742.0,20741.0,11.60150361]
[1673780436557,0.013,20742.0,20741.0,11.78545361]
[1673780437248,0.013,20742.0,20741.0,11.60150361]
[1673780439972,0.15717494,20742.0,20741.0,11.60150361]
[1673780440209,0.45717494,20742.0,20741.0,11.60150361]
[1673780440476,0.15717494,20742.0,20741.0,11.60150361]
[1673780440742,0.013,20742.0,20741.0,11.60150361]
[1673780440994,0.013,20742.0,20741.0,11.78545361]
[1673780441258,0.013,20742.0,20741.0,11.60150361]
[1673780442520,0.15772243,20742.0,20741.0,11.60143296]
[1673780442779,0.45717494,20742.0,20741.0,11.60143296]
[1673780445610,0.15717494,20742.0,20741.0,11.60143296]
[1673780445886,0.013,20742.0,20741.0,11.60143296]
[1673780446371,0.013,20742.0,20741.0,11.60150361]
[1673780448577,0.013,20742.0,20741.0,11.60143296]
[1673780450139,0.013,20742.0,20741.0,11.78545361]
[1673780450403,0.013,20742.0,20741.0,11.60150361]
[1673780451399,0.013,20742.0,20741.0,11.78545361]
[1673780452613,0.013,20742.0,20741.0,11.60150361]
[1673780454171,0.013,20742.0,20741.0,11.60143296]
[1673780455438,0.013,20742.0,20741.0,11.78538296]
[1673780455967,0.013,20742.0,20741.0,11.60143296]
[1673780456462,0.013,20742.0,20741.0,11.78538296]
[1673780457728,0.013,20742.0,20741.0,11.60143296]
[1673780457977,0.013,20742.0,20741.0,11.60150361]
[1673780458226,0.013,20742.0,20741.0,11.78545361]
[1673780458771,0.013,20742.0,20741.0,11.60150361]
[1673780459563,0.013,20742.0,20741.0,11.78545361]
[1673780460836,0.013,20742.0,20741.0,12.74972561]
[1673780461363,0.013,20742.0,20741.0,12.56577561]
[1673780461655,0.013,20742.0,20741.0,12.74972561]
[1673780462169,0.013,20742.0,20741.0,13.15140769]
[1673780462463,0.013,20742.0,20741.0,13.29569258]
[1673780462721,0.013,20742.0,20741.0,12.8940105]
[1673780463536,0.013,20742.0,20741.0,12.56577561]
[1673780463850,0.013,20742.0,20741.0,12.74972561]
[1673780464371,0.013,20742.0,20741.0,12.56577561]
[1673780464663,0.013,20742.0,20741.0,12.74972561]
[1673780467505,0.013,20742.0,20741.0,12.8940105]
[1673780468033,0.013,20742.0,20741.0,12.74972561]
[1673780468548,0.013,20742.0,20741.0,12.8940105]
[1673780469542,0.013,20742.0,20741.0,13.11057566]
[1673780469796,0.013,20742.0,20741.0,12.8940105]
[1673780470301,0.013,20742.0,20741.0,13.11057566]
[1673780470556,1e-08,20742.0,20741.0,13.11057566]
[1673780471325,1e-08,20742.0,20741.0,2.11057566]
[1673780471572,1e-08,20742.0,20741.0,1.7100605]
[1673780472111,1e-08,20742.0,20741.0,1.22590105]
[1673780472337,1e-08,20742.0,20741.0,1.40985105]
[1673780473073,1e-08,20742.0,20741.0,1.26556616]
[1673780473320,1e-08,20742.0,20741.0,1.22590105]
[1673780473569,1e-08,20742.0,20741.0,1.40985105]
[1673780474156,1e-08,20742.0,20741.0,1.62641621]
[1673780474364,1e-08,20742.0,20741.0,1.40985105]
[1673780474619,1e-08,20742.0,20741.0,1.62641621]
[1673780474911,1e-08,20742.0,20741.0,2.24018997]
[1673780475628,1e-08,20742.0,20741.0,2.24036581]
[1673780475873,1e-08,20742.0,20741.0,2.49758716]
[1673780476121,1e-08,20742.0,20741.0,3.34905041]
[1673780476866,1e-08,20742.0,20741.0,2.09590508]
[1673780477377,1e-08,20742.0,20741.0,2.49758716]
[1673780477629,0.01074721,20747.0,20742.0,5.999e-05]
[1673780477883,0.01074721,20747.0,20744.0,0.14434981]
[1673780478143,0.01074721,20747.0,20745.0,1.92314354]
[1673780478404,0.01074721,20747.0,20746.0,0.183893]
[1673780478701,0.01074721,20747.0,20746.0,0.665913]
[1673780479506,0.01074721,20747.0,20746.0,0.48202]
[1673780479780,0.01074721,20747.0,20746.0,0.665911]
[1673780480037,0.01074721,20747.0,20746.0,0.48202]
[1673780480289,0.01074721,20747.0,20746.0,0.665911]
[1673780480780,0.01074721,20747.0,20746.0,0.48202]
[1673780480786,0.01074721,20747.0,20746.0,0.57402]
[1673780481049,0.01074721,20747.0,20746.0,1.05604]
[1673780481306,0.01074721,20747.0,20746.0,1.46808158]
[1673780481839,0.01074721,20747.0,20746.0,1.46815222]
[1673780482093,0.01074721,20747.0,20746.0,2.0537253]
[1673780482356,0.01074721,20747.0,20746.0,1.65204322]
[1673780484404,0.01074721,20747.0,20746.0,1.46815222]
[1673780484677,0.01074721,20747.0,20746.0,1.65204322]
[1673780485455,0.01074721,20747.0,20746.0,1.46815222]
[1673780485712,0.01074721,20747.0,20746.0,1.65204322]
[1673780486719,0.01074721,20747.0,20746.0,1.46815222]
[1673780487034,0.0112947,20747.0,20746.0,1.46808158]
[1673780487225,0.01074721,20747.0,20746.0,1.46808158]
[1673780487975,0.01074721,20747.0,20746.0,0.98606158]
[1673780488225,0.01074721,20747.0,20746.0,0.98618925]
[1673780489493,0.01074721,20747.0,20746.0,1.17008025]
[1673780489738,0.01074721,20747.0,20746.0,0.98618925]
[1673780490243,0.01074721,20747.0,20746.0,0.50404158]
[1673780491296,0.01074721,20747.0,20746.0,1.64161308]
[1673780491530,0.01074721,20747.0,20746.0,1.65011308]
[1673780492284,0.01074721,20747.0,20746.0,2.14251723]
[1673780493281,0.01074721,20747.0,20746.0,1.74083515]
[1673780493528,0.01074721,20747.0,20746.0,0.275891]
[1673780493785,0.01074721,20747.0,20746.0,0.092]
[1673780495323,0.01074721,20747.0,20746.0,0.275891]
[1673780495837,0.01074721,20747.0,20746.0,0.092]
[1673780498608,0.01074721,20747.0,20746.0,0.09193874]
[1673780501763,0.01074721,20747.0,20746.0,0.09200602]
[1673780502010,0.01074721,20747.0,20746.0,0.27589702]
[1673780502492,0.01074721,20747.0,20746.0,11.09200602]
[1673780503055,0.01074721,20747.0,20746.0,5.09200602]
[1673780503625,0.01074721,20747.0,20746.0,5.27589702]
[1673780503818,0.01074721,20747.0,20746.0,0.27589702]
[1673780504087,0.01074721,20747.0,20746.0,0.09200602]
[1673780506695,0.01074721,20747.0,20746.0,0.46768537]
[1673780509127,0.01074721,20747.0,20746.0,0.46761809]
[1673780512603,0.01074721,20747.0,20746.0,0.46768537]
[1673780512914,0.01074721,20747.0,20746.0,0.77401521]
[1673780513182,0.01074721,20748.0,20747.0,0.40860945]
[1673780514247,0.01074721,20748.0,20747.0,1.17448645]
[1673780514527,0.01074721,20748.0,20747.0,1.21883626]
[1673780514790,0.01074721,20748.0,20747.0,2.31904006]
[1673780515044,0.01074721,20748.0,20747.0,2.10251534]
[1673780515295,0.01074721,20748.0,20747.0,1.79283326]
[1673780515821,0.01074721,20748.0,20747.0,1.60895326]
[1673780516071,0.01074721,20748.0,20747.0,1.64848345]
[1673780516327,0.01074721,20748.0,20747.0,1.79283326]
[1673780516594,0.01074721,20748.0,20747.0,1.64848345]
[1673780516868,0.01074721,20748.0,20747.0,1.79283326]
[1673780517665,0.01074721,20748.0,20747.0,1.64848345]
[1673780517927,0.01074721,20748.0,20747.0,1.46460345]
[1673780518717,0.01074721,20748.0,20747.0,1.64848345]
[1673780518979,0.01074721,20748.0,20747.0,1.79283326]
[1673780521443,0.01074721,20748.0,20747.0,1.46460345]
[1673780521953,0.01074721,20748.0,20747.0,0.98260645]
[1673780522210,0.01074721,20748.0,20747.0,1.16648645]
[1673780523215,0.01074721,20748.0,20747.0,0.98260645]
[1673780523469,0.01074721,20748.0,20747.0,1.16648645]
[1673780523723,0.01074721,20748.0,20747.0,0.98260645]
[1673780523973,0.01074721,20748.0,20747.0,1.16648645]
[1673780524240,0.01074721,20748.0,20747.0,0.98260645]
[1673780524549,0.01074721,20748.0,20747.0,1.16648645]
[1673780524757,0.01074721,20748.0,20747.0,1.31083626]
[1673780525028,0.01074721,20748.0,20747.0,1.12695626]
[1673780525277,0.01074721,20748.0,20747.0,0.98260645]
[1673780525540,0.01074721,20748.0,20747.0,1.61745326]
[1673780525825,0.01074721,20748.0,20747.0,1.17498645]
[1673780526060,0.01074721,20748.0,20747.0,1.16648645]
[1673780526554,0.01074721,20748.0,20747.0,0.50060945]
[1673780527571,0.01074721,20748.0,20747.0,0.68448945]
[1673780527828,0.01074721,20748.0,20747.0,0.50060945]
[1673780528051,0.01074721,20748.0,20747.0,0.68448945]
[1673780528266,0.01074721,20748.0,20747.0,0.50060945]
[1673780532589,0.33188721,20748.0,20747.0,0.50060945]
[1673780532860,0.01074721,20748.0,20747.0,0.50060945]
[1673780533953,0.15492215,20748.0,20747.0,0.50060945]
[1673780534214,0.15546964,20748.0,20747.0,0.50060945]
[1673780534473,0.45546964,20748.0,20747.0,0.50060945]
[1673780534791,0.45492215,20748.0,20747.0,0.50060945]
[1673780535066,0.67116045,20748.0,20747.0,0.092]
[1673780535329,1.14643252,20748.0,20747.0,0.092]
[1673780535582,0.92964673,20748.0,20747.0,0.092]
[1673780536127,1.14588503,20748.0,20747.0,0.092]
[1673780536917,1.46702503,20748.0,20747.0,0.092]
[1673780537180,1.14588503,20748.0,20746.0,0.47192896]
[1673780537457,0.63064673,20748.0,20747.0,0.085]
[1673780537716,0.63064673,20748.0,20746.0,9.47192896]
[1673780537717,0.3,20748.0,20746.0,9.47192896]
[1673780537974,0.001,20748.0,20747.0,0.46358993]
[1673780538238,0.3,20748.0,20747.0,0.37858993]
[1673780538493,0.62214,20748.0,20747.0,0.37858993]
[1673780538786,0.62114,20748.0,20747.0,0.37858993]
[1673780539055,0.8373783,20748.0,20747.0,0.37858993]
[1673780539833,0.5162383,20748.0,20747.0,0.37858993]
[1673780540132,0.5172383,20748.0,20747.0,0.085]
[1673780542013,0.9992123,20748.0,20747.0,0.085]
[1673780542274,0.78352149,20748.0,20747.0,0.085]
[1673780542792,2.30147836,20748.0,20747.0,0.085]
[1673780543051,3.03022238,20748.0,20747.0,0.08318549]
[1673780543835,2.70753489,20748.0,20745.0,0.37748046]